[Event "Titled Tuesday Blitz January 10 Late 2023"]
[White "Berezin, Viktor"]
[Black "Lutz, Igor Oscar"]
[WhiteFideId "14107872"]
[BlackFideId "2110806"]
[WhiteElo "2307"]
[BlackElo "1969"]
[Result "1-0"]
[Round "01"]
[TimeControl "180+2"]
[Date "2023.01.10"]
[WhiteClock "0:00:33"]
[BlackClock "0:00:05"]

1. d4 {[%clk 0:00:00]}  Nf6 {[%clk 0:00:00]} 2. Nf3 {[%clk 0:02:55]}  e6 {[%clk 0:02:59]} 3. c4 {[%clk 0:02:54]}  d5 {[%clk 0:02:59]} 4. g3 {[%clk 0:02:53]}  dxc4 {[%clk 0:02:59]} 5. Bg2 {[%clk 0:02:53]}  c5 {[%clk 0:02:47]} 6. O-O {[%clk 0:02:53]}  Nc6 {[%clk 0:02:34]} 7. e3 {[%clk 0:02:53]}  cxd4 {[%clk 0:02:29]} 8. exd4 {[%clk 0:02:51]}  Be7 {[%clk 0:02:16]} 9. Qa4 {[%clk 0:02:51]}  O-O {[%clk 0:02:13]} 10. Qxc4 {[%clk 0:02:42]}  Bd7 {[%clk 0:02:02]} 11. Nc3 {[%clk 0:02:42]}  Rc8 {[%clk 0:01:48]} 12. Rd1 {[%clk 0:02:42]}  Ne5 {[%clk 0:01:48]} 13. Qe2 {[%clk 0:02:41]}  Nxf3+ {[%clk 0:01:40]} 14. Bxf3 {[%clk 0:02:38]}  Bc6 {[%clk 0:01:37]} 15. Bf4 {[%clk 0:02:38]}  Nd5 {[%clk 0:01:35]} 16. Bd2 {[%clk 0:02:38]}  Nxc3 {[%clk 0:01:19]} 17. Bxc3 {[%clk 0:02:23]}  Bxf3 {[%clk 0:01:08]} 18. Qxf3 {[%clk 0:02:23]}  Qd5 {[%clk 0:01:07]} 19. Qxd5 {[%clk 0:02:24]}  exd5 {[%clk 0:00:59]} 20. Re1 {[%clk 0:02:13]}  Bf6 {[%clk 0:01:00]} 21. Re2 {[%clk 0:02:10]}  Rfe8 {[%clk 0:00:56]} 22. Rae1 {[%clk 0:02:10]}  Rxe2 {[%clk 0:00:51]} 23. Rxe2 {[%clk 0:02:09]}  g6 {[%clk 0:00:33]} 24. Kg2 {[%clk 0:02:10]}  Rc7 {[%clk 0:00:25]} 25. Re8+ {[%clk 0:02:09]}  Kg7 {[%clk 0:00:20]} 26. Kf3 {[%clk 0:02:04]}  h5 {[%clk 0:00:20]} 27. h4 {[%clk 0:01:59]}  Re7 {[%clk 0:00:17]} 28. Ra8 {[%clk 0:01:58]}  a6 {[%clk 0:00:17]} 29. Rc8 {[%clk 0:01:52]}  g5 {[%clk 0:00:16]} 30. hxg5 {[%clk 0:01:51]}  Bxg5 {[%clk 0:00:14]} 31. Rc5 {[%clk 0:01:47]}  Rd7 {[%clk 0:00:15]} 32. a4 {[%clk 0:01:42]}  Be7 {[%clk 0:00:14]} 33. Rc8 {[%clk 0:01:36]}  Kg6 {[%clk 0:00:15]} 34. b4 {[%clk 0:01:36]}  h4 {[%clk 0:00:14]} 35. b5 {[%clk 0:01:35]}  axb5 {[%clk 0:00:11]} 36. axb5 {[%clk 0:01:30]}  hxg3 {[%clk 0:00:11]} 37. fxg3 {[%clk 0:01:30]}  Kf5 {[%clk 0:00:11]} 38. g4+ {[%clk 0:01:30]}  Kg5 {[%clk 0:00:10]} 39. Bd2+ {[%clk 0:01:28]}  Kf6 {[%clk 0:00:09]} 40. Bf4 {[%clk 0:01:28]}  Bd6 {[%clk 0:00:08]} 41. Be3 {[%clk 0:01:25]}  Rc7 {[%clk 0:00:07]} 42. Rd8 {[%clk 0:01:19]}  Be7 {[%clk 0:00:06]} 43. Rxd5 {[%clk 0:01:17]}  Rc3 {[%clk 0:00:06]} 44. Ke4 {[%clk 0:01:16]}  Kg6 {[%clk 0:00:05]} 45. Rd7 {[%clk 0:01:08]}  Bf6 {[%clk 0:00:04]} 46. Rxb7 {[%clk 0:01:06]}  Rb3 {[%clk 0:00:04]} 47. Rb6 {[%clk 0:01:06]}  Kg7 {[%clk 0:00:04]} 48. g5 {[%clk 0:01:03]}  Bd8 {[%clk 0:00:04]} 49. Rb7 {[%clk 0:00:58]}  Rb4 {[%clk 0:00:04]} 50. Bf4 {[%clk 0:00:57]}  Rb3 {[%clk 0:00:02]} 51. Kf5 {[%clk 0:00:55]}  Rb1 {[%clk 0:00:02]} 52. Be5+ {[%clk 0:00:53]}  Kf8 {[%clk 0:00:03]} 53. Bd6+ {[%clk 0:00:53]}  Ke8 {[%clk 0:00:02]} 54. Bf4 {[%clk 0:00:53]}  Rf1 {[%clk 0:00:03]} 55. Ke4 {[%clk 0:00:49]}  Re1+ {[%clk 0:00:03]} 56. Kd5 {[%clk 0:00:48]}  Rf1 {[%clk 0:00:03]} 57. Bd2 {[%clk 0:00:47]}  Rf5+ {[%clk 0:00:04]} 58. Ke4 {[%clk 0:00:37]}  Rf1 {[%clk 0:00:05]} 59. Rb8 {[%clk 0:00:36]}  Rd1 {[%clk 0:00:05]} 60. Ba5 {[%clk 0:00:33]} 1-0


[Site "https://www.chess.com"]

[Event "Titled Tuesday Blitz January 10 Late 2023"]
[White "Nakamura, Hikaru"]
[Black "Barrientos, Sergio E"]
[WhiteFideId "2016192"]
[BlackFideId "4401824"]
[WhiteElo "2775"]
[BlackElo "2479"]
[Result "1-0"]
[Round "02"]
[TimeControl "180+2"]
[Date "2023.01.10"]
[WhiteClock "0:02:33"]
[BlackClock "0:01:26"]

1. Nf3 {[%clk 0:00:00]}  Nf6 {[%clk 0:00:00]} 2. b3 {[%clk 0:03:00]}  d5 {[%clk 0:02:54]} 3. Bb2 {[%clk 0:02:53]}  Bf5 {[%clk 0:02:52]} 4. g3 {[%clk 0:02:53]}  Nbd7 {[%clk 0:02:53]} 5. Bg2 {[%clk 0:02:52]}  e6 {[%clk 0:02:52]} 6. Nh4 {[%clk 0:02:52]}  Bg4 {[%clk 0:02:52]} 7. h3 {[%clk 0:02:52]}  Bh5 {[%clk 0:02:50]} 8. g4 {[%clk 0:02:53]}  Bg6 {[%clk 0:02:51]} 9. d3 {[%clk 0:02:53]}  c6 {[%clk 0:02:51]} 10. e3 {[%clk 0:02:53]}  a5 {[%clk 0:02:46]} 11. a3 {[%clk 0:02:53]}  Qc7 {[%clk 0:02:29]} 12. Nd2 {[%clk 0:02:53]}  Be7 {[%clk 0:02:24]} 13. Qe2 {[%clk 0:02:52]}  b5 {[%clk 0:02:14]} 14. O-O {[%clk 0:02:52]}  a4 {[%clk 0:02:11]} 15. b4 {[%clk 0:02:50]}  Rg8 {[%clk 0:02:11]} 16. c4 {[%clk 0:02:50]}  h5 {[%clk 0:01:56]} 17. g5 {[%clk 0:02:47]}  Nh7 {[%clk 0:01:37]} 18. Nxg6 {[%clk 0:02:41]}  fxg6 {[%clk 0:01:37]} 19. h4 {[%clk 0:02:39]}  Nhf8 {[%clk 0:01:38]} 20. cxb5 {[%clk 0:02:40]}  cxb5 {[%clk 0:01:36]} 21. Rac1 {[%clk 0:02:37]}  Qb7 {[%clk 0:01:36]} 22. e4 {[%clk 0:02:38]}  Nb6 {[%clk 0:01:33]} 23. Bd4 {[%clk 0:02:37]}  Nfd7 {[%clk 0:01:27]} 24. exd5 {[%clk 0:02:35]}  e5 {[%clk 0:01:26]} 25. d6 {[%clk 0:02:33]} 1-0


[Site "https://www.chess.com"]

[Event "Titled Tuesday Blitz January 10 Late 2023"]
[White "Hernandez Gonzalez, William"]
[Black "Dubov, Daniil"]
[WhiteFideId "3509915"]
[BlackFideId "24126055"]
[WhiteElo "2489"]
[BlackElo "2708"]
[Result "0-1"]
[Round "02"]
[TimeControl "180+2"]
[Date "2023.01.10"]
[WhiteClock "0:00:18"]
[BlackClock "0:01:05"]

1. e4 {[%clk 0:00:00]}  c5 {[%clk 0:00:00]} 2. Nf3 {[%clk 0:03:00]}  e6 {[%clk 0:03:00]} 3. g3 {[%clk 0:02:59]}  d5 {[%clk 0:03:00]} 4. exd5 {[%clk 0:02:58]}  exd5 {[%clk 0:03:00]} 5. d4 {[%clk 0:02:57]}  cxd4 {[%clk 0:03:01]} 6. Nxd4 {[%clk 0:02:58]}  Nc6 {[%clk 0:03:01]} 7. Bg2 {[%clk 0:02:57]}  Bc5 {[%clk 0:03:01]} 8. Be3 {[%clk 0:02:56]}  Qb6 {[%clk 0:03:01]} 9. Qe2 {[%clk 0:02:48]}  Nge7 {[%clk 0:03:01]} 10. Nxc6 {[%clk 0:02:29]}  bxc6 {[%clk 0:02:33]} 11. Bxc5 {[%clk 0:02:18]}  Qxc5 {[%clk 0:02:33]} 12. Nd2 {[%clk 0:02:15]}  O-O {[%clk 0:02:34]} 13. Nb3 {[%clk 0:02:05]}  Qd6 {[%clk 0:02:33]} 14. O-O {[%clk 0:02:01]}  Ng6 {[%clk 0:02:32]} 15. Qe3 {[%clk 0:01:57]}  Bf5 {[%clk 0:02:28]} 16. c3 {[%clk 0:01:51]}  Rfe8 {[%clk 0:02:15]} 17. Qc5 {[%clk 0:01:47]}  Qxc5 {[%clk 0:02:13]} 18. Nxc5 {[%clk 0:01:46]}  Re2 {[%clk 0:02:13]} 19. b3 {[%clk 0:01:46]}  Rae8 {[%clk 0:02:14]} 20. Bf3 {[%clk 0:01:40]}  Rc2 {[%clk 0:02:12]} 21. Rfc1 {[%clk 0:01:23]}  Rb2 {[%clk 0:02:09]} 22. Na4 {[%clk 0:01:22]}  Rd2 {[%clk 0:02:04]} 23. Rd1 {[%clk 0:01:21]}  Ne5 {[%clk 0:02:04]} 24. Bg2 {[%clk 0:01:21]}  Rxd1+ {[%clk 0:02:03]} 25. Rxd1 {[%clk 0:01:09]}  Bg4 {[%clk 0:02:03]} 26. Rc1 {[%clk 0:01:10]}  Nd3 {[%clk 0:02:03]} 27. Ra1 {[%clk 0:01:00]}  Re2 {[%clk 0:01:56]} 28. h3 {[%clk 0:00:58]}  Bf5 {[%clk 0:01:43]} 29. g4 {[%clk 0:00:48]}  Be4 {[%clk 0:01:39]} 30. f3 {[%clk 0:00:45]}  Bg6 {[%clk 0:01:35]} 31. Bf1 {[%clk 0:00:33]}  Rd2 {[%clk 0:01:34]} 32. Bxd3 {[%clk 0:00:33]}  Bxd3 {[%clk 0:01:30]} 33. Nc5 {[%clk 0:00:27]}  h5 {[%clk 0:01:30]} 34. a4 {[%clk 0:00:24]}  Kh7 {[%clk 0:01:27]} 35. a5 {[%clk 0:00:23]}  Kg6 {[%clk 0:01:24]} 36. Re1 {[%clk 0:00:22]}  hxg4 {[%clk 0:01:22]} 37. hxg4 {[%clk 0:00:21]}  Kg5 {[%clk 0:01:12]} 38. Nxd3 {[%clk 0:00:20]}  Rxd3 {[%clk 0:01:10]} 39. Re7 {[%clk 0:00:19]}  Kf4 {[%clk 0:01:10]} 40. Rxf7+ {[%clk 0:00:19]}  Kg3 {[%clk 0:01:05]} 41. Kf1 {[%clk 0:00:18]}  Rxf3+ {[%clk 0:01:06]} 42. Rxf3+ {[%clk 0:00:18]}  Kxf3 {[%clk 0:01:04]} 43. Ke1 {[%clk 0:00:18]}  Ke3 {[%clk 0:01:05]} 0-1


[Site "https://www.chess.com"]

[Event "Titled Tuesday Blitz January 10 Late 2023"]
[White "Fedoseev, Vladimir"]
[Black "Taboas Rodriguez, Daniel"]
[WhiteFideId "24130737"]
[BlackFideId "2208466"]
[WhiteElo "2680"]
[BlackElo "2371"]
[Result "1-0"]
[Round "02"]
[TimeControl "180+2"]
[Date "2023.01.10"]
[WhiteClock "0:00:42"]
[BlackClock "0:00:01"]

1. e4 {[%clk 0:00:00]}  e5 {[%clk 0:00:00]} 2. Nf3 {[%clk 0:03:00]}  Nc6 {[%clk 0:02:59]} 3. Bb5 {[%clk 0:03:00]}  Nf6 {[%clk 0:03:00]} 4. d3 {[%clk 0:03:00]}  d6 {[%clk 0:03:00]} 5. d4 {[%clk 0:02:59]}  Bd7 {[%clk 0:03:00]} 6. d5 {[%clk 0:02:55]}  Ne7 {[%clk 0:02:57]} 7. Bxd7+ {[%clk 0:02:54]}  Nxd7 {[%clk 0:02:54]} 8. c4 {[%clk 0:02:47]}  h6 {[%clk 0:02:51]} 9. Nc3 {[%clk 0:02:45]}  g6 {[%clk 0:02:48]} 10. g4 {[%clk 0:02:45]}  Bg7 {[%clk 0:02:48]} 11. h4 {[%clk 0:02:31]}  O-O {[%clk 0:02:43]} 12. h5 {[%clk 0:02:30]}  Nf6 {[%clk 0:02:16]} 13. hxg6 {[%clk 0:02:29]}  Nxg6 {[%clk 0:01:52]} 14. g5 {[%clk 0:02:19]}  hxg5 {[%clk 0:01:51]} 15. Bxg5 {[%clk 0:02:13]}  Qd7 {[%clk 0:01:46]} 16. Qe2 {[%clk 0:02:13]}  Nh7 {[%clk 0:01:45]} 17. Be3 {[%clk 0:02:12]}  f5 {[%clk 0:01:39]} 18. Rxh7 {[%clk 0:02:07]}  Kxh7 {[%clk 0:01:38]} 19. Ng5+ {[%clk 0:02:05]}  Kg8 {[%clk 0:01:20]} 20. Qh5 {[%clk 0:02:06]}  Rf6 {[%clk 0:01:20]} 21. exf5 {[%clk 0:02:06]}  Qxf5 {[%clk 0:01:21]} 22. Nce4 {[%clk 0:02:02]}  Nf4 {[%clk 0:01:21]} 23. Nxf6+ {[%clk 0:02:02]}  Qxf6 {[%clk 0:00:42]} 24. Bxf4 {[%clk 0:02:02]}  exf4 {[%clk 0:00:38]} 25. Kf1 {[%clk 0:01:41]}  Qf5 {[%clk 0:00:35]} 26. Re1 {[%clk 0:01:38]}  Rf8 {[%clk 0:00:17]} 27. Re7 {[%clk 0:01:37]}  f3 {[%clk 0:00:17]} 28. Kg1 {[%clk 0:01:10]}  Bf6 {[%clk 0:00:17]} 29. Re4 {[%clk 0:00:47]}  Bxg5 {[%clk 0:00:09]} 30. Rg4 {[%clk 0:00:42]}  Qb1+ {[%clk 0:00:01]} 31. Kh2 {[%clk 0:00:41]}  Rf5 {[%clk 0:00:01]} 32. Qg6+ {[%clk 0:00:42]} 1-0


[Site "https://www.chess.com"]

[Event "Titled Tuesday Blitz January 10 Late 2023"]
[White "UnknownMagician"]
[Black "Vachier-Lagrave, Maxime"]
[BlackFideId "623539"]
[WhiteElo "2662"]
[BlackElo "2742"]
[Result "0-1"]
[Round "02"]
[TimeControl "180+2"]
[Date "2023.01.10"]
[WhiteClock "0:00:14"]
[BlackClock "0:00:23"]

1. c4 {[%clk 0:00:00]}  e5 {[%clk 0:00:00]} 2. Nc3 {[%clk 0:03:00]}  Nf6 {[%clk 0:02:57]} 3. g3 {[%clk 0:03:00]}  Bb4 {[%clk 0:02:55]} 4. Bg2 {[%clk 0:03:00]}  O-O {[%clk 0:02:54]} 5. Qb3 {[%clk 0:02:59]}  Na6 {[%clk 0:02:53]} 6. a3 {[%clk 0:02:55]}  Be7 {[%clk 0:02:43]} 7. d3 {[%clk 0:02:52]}  Re8 {[%clk 0:02:40]} 8. Nf3 {[%clk 0:02:50]}  Bf8 {[%clk 0:02:39]} 9. O-O {[%clk 0:02:49]}  c6 {[%clk 0:02:39]} 10. e3 {[%clk 0:02:48]}  d5 {[%clk 0:02:39]} 11. cxd5 {[%clk 0:02:33]}  cxd5 {[%clk 0:02:34]} 12. d4 {[%clk 0:02:31]}  e4 {[%clk 0:02:35]} 13. Ne5 {[%clk 0:02:30]}  Nc7 {[%clk 0:02:34]} 14. Bd2 {[%clk 0:02:31]}  Bd6 {[%clk 0:02:07]} 15. Nb5 {[%clk 0:02:23]}  Nxb5 {[%clk 0:02:01]} 16. Qxb5 {[%clk 0:02:17]}  a6 {[%clk 0:01:58]} 17. Qb3 {[%clk 0:02:18]}  Rb8 {[%clk 0:01:31]} 18. Bc3 {[%clk 0:02:17]}  Be6 {[%clk 0:01:14]} 19. Rac1 {[%clk 0:02:11]}  h5 {[%clk 0:01:13]} 20. h3 {[%clk 0:02:05]}  Nh7 {[%clk 0:01:14]} 21. Bb4 {[%clk 0:01:52]}  Bc7 {[%clk 0:01:09]} 22. Rc2 {[%clk 0:01:43]}  Ng5 {[%clk 0:01:08]} 23. Kh2 {[%clk 0:01:29]}  h4 {[%clk 0:01:06]} 24. Rfc1 {[%clk 0:01:27]}  Rc8 {[%clk 0:00:47]} 25. Qa4 {[%clk 0:01:24]}  hxg3+ {[%clk 0:00:46]} 26. fxg3 {[%clk 0:01:08]}  Bxe5 {[%clk 0:00:44]} 27. dxe5 {[%clk 0:01:09]}  Rxc2 {[%clk 0:00:40]} 28. Qxc2 {[%clk 0:01:08]}  Nf3+ {[%clk 0:00:38]} 29. Bxf3 {[%clk 0:01:06]}  exf3 {[%clk 0:00:37]} 30. Qf2 {[%clk 0:00:54]}  Qg5 {[%clk 0:00:38]} 31. Qxf3 {[%clk 0:00:52]}  Qxe5 {[%clk 0:00:36]} 32. Bc3 {[%clk 0:00:44]}  Qg5 {[%clk 0:00:37]} 33. Qf4 {[%clk 0:00:43]}  Qg6 {[%clk 0:00:37]} 34. Rf1 {[%clk 0:00:32]}  f6 {[%clk 0:00:37]} 35. Rf2 {[%clk 0:00:27]}  Bf7 {[%clk 0:00:35]} 36. Qc7 {[%clk 0:00:25]}  Rxe3 {[%clk 0:00:30]} 37. Bd4 {[%clk 0:00:22]}  Rd3 {[%clk 0:00:29]} 38. Bc5 {[%clk 0:00:17]}  Be6 {[%clk 0:00:28]} 39. Bd6 {[%clk 0:00:15]}  Qh5 {[%clk 0:00:26]} 40. h4 {[%clk 0:00:14]}  Qg4 {[%clk 0:00:23]} 0-1


[Site "https://www.chess.com"]

[Event "Titled Tuesday Blitz January 10 Late 2023"]
[White "Atanasov, Anthony"]
[Black "Andreikin, Dmitry"]
[WhiteFideId "2623897"]
[BlackFideId "4158814"]
[WhiteElo "2368"]
[BlackElo "2729"]
[Result "0-1"]
[Round "02"]
[TimeControl "180+2"]
[Date "2023.01.10"]
[WhiteClock "0:00:19"]
[BlackClock "0:02:04"]

1. d4 {[%clk 0:00:00]}  Nf6 {[%clk 0:00:00]} 2. Nf3 {[%clk 0:02:54]}  e6 {[%clk 0:02:59]} 3. Bf4 {[%clk 0:02:52]}  Nh5 {[%clk 0:02:59]} 4. Bg5 {[%clk 0:02:52]}  Be7 {[%clk 0:02:57]} 5. Bxe7 {[%clk 0:02:34]}  Qxe7 {[%clk 0:02:57]} 6. e4 {[%clk 0:02:34]}  d6 {[%clk 0:02:58]} 7. c3 {[%clk 0:02:34]}  e5 {[%clk 0:02:56]} 8. Nbd2 {[%clk 0:02:19]}  O-O {[%clk 0:02:51]} 9. Bc4 {[%clk 0:02:09]}  Nc6 {[%clk 0:02:51]} 10. O-O {[%clk 0:02:03]}  Nf4 {[%clk 0:02:45]} 11. Re1 {[%clk 0:01:58]}  Qf6 {[%clk 0:02:45]} 12. Nf1 {[%clk 0:01:56]}  Bg4 {[%clk 0:02:44]} 13. Ne3 {[%clk 0:01:52]}  Nh3+ {[%clk 0:02:43]} 14. Kf1 {[%clk 0:01:45]}  Bxf3 {[%clk 0:02:37]} 15. Qxf3 {[%clk 0:01:45]}  Qxf3 {[%clk 0:02:37]} 16. gxf3 {[%clk 0:01:43]}  exd4 {[%clk 0:02:37]} 17. Nd5 {[%clk 0:01:43]}  dxc3 {[%clk 0:02:37]} 18. f4 {[%clk 0:01:40]}  cxb2 {[%clk 0:02:34]} 19. Rab1 {[%clk 0:01:25]}  Na5 {[%clk 0:02:24]} 20. Be2 {[%clk 0:01:24]}  c6 {[%clk 0:02:24]} 21. Ne7+ {[%clk 0:00:48]}  Kh8 {[%clk 0:02:24]} 22. Rxb2 {[%clk 0:00:42]}  g6 {[%clk 0:02:24]} 23. e5 {[%clk 0:00:43]}  dxe5 {[%clk 0:02:18]} 24. fxe5 {[%clk 0:00:30]}  Rae8 {[%clk 0:02:13]} 25. Bg4 {[%clk 0:00:31]}  Nf4 {[%clk 0:02:12]} 26. Re4 {[%clk 0:00:20]}  Nd3 {[%clk 0:02:12]} 27. Rd2 {[%clk 0:00:19]}  Nc5 {[%clk 0:02:03]} 28. Rf4 {[%clk 0:00:19]}  Rxe7 {[%clk 0:02:04]} 0-1


[Site "https://www.chess.com"]

[Event "Titled Tuesday Blitz January 10 Late 2023"]
[White "Sevian, Samuel"]
[Black "Carnicelli, Valerio"]
[WhiteFideId "2040506"]
[BlackFideId "856185"]
[WhiteElo "2684"]
[BlackElo "2370"]
[Result "1-0"]
[Round "02"]
[TimeControl "180+2"]
[Date "2023.01.10"]
[WhiteClock "0:01:10"]
[BlackClock "0:00:30"]

1. d4 {[%clk 0:00:00]}  Nf6 {[%clk 0:00:00]} 2. c4 {[%clk 0:03:00]}  g6 {[%clk 0:03:00]} 3. Nc3 {[%clk 0:03:01]}  Bg7 {[%clk 0:03:00]} 4. e4 {[%clk 0:03:00]}  d6 {[%clk 0:03:01]} 5. h3 {[%clk 0:03:00]}  O-O {[%clk 0:03:01]} 6. Nf3 {[%clk 0:03:00]}  Na6 {[%clk 0:03:02]} 7. Bg5 {[%clk 0:03:00]}  h6 {[%clk 0:03:00]} 8. Be3 {[%clk 0:02:58]}  e5 {[%clk 0:02:55]} 9. d5 {[%clk 0:02:59]}  Nc5 {[%clk 0:02:56]} 10. Nd2 {[%clk 0:02:59]}  a5 {[%clk 0:02:54]} 11. g4 {[%clk 0:03:00]}  Nh7 {[%clk 0:02:53]} 12. h4 {[%clk 0:03:00]}  Bd7 {[%clk 0:02:45]} 13. h5 {[%clk 0:02:51]}  g5 {[%clk 0:02:41]} 14. Be2 {[%clk 0:02:50]}  a4 {[%clk 0:02:39]} 15. Qc2 {[%clk 0:02:50]}  Nf6 {[%clk 0:02:35]} 16. f3 {[%clk 0:02:50]}  c6 {[%clk 0:02:34]} 17. O-O {[%clk 0:02:48]}  Qc8 {[%clk 0:02:33]} 18. Kh1 {[%clk 0:02:30]}  Nxg4 {[%clk 0:02:29]} 19. Bxc5 {[%clk 0:02:26]}  dxc5 {[%clk 0:02:19]} 20. fxg4 {[%clk 0:02:21]}  Bxg4 {[%clk 0:02:17]} 21. Qd3 {[%clk 0:02:20]}  Bxe2 {[%clk 0:02:18]} 22. Nxe2 {[%clk 0:02:08]}  cxd5 {[%clk 0:01:57]} 23. cxd5 {[%clk 0:02:07]}  b5 {[%clk 0:01:51]} 24. Rf5 {[%clk 0:02:07]}  c4 {[%clk 0:01:51]} 25. Qc3 {[%clk 0:02:03]}  Qc5 {[%clk 0:01:47]} 26. a3 {[%clk 0:02:03]}  Rab8 {[%clk 0:01:42]} 27. Rc1 {[%clk 0:02:03]}  b4 {[%clk 0:01:38]} 28. axb4 {[%clk 0:02:02]}  Rxb4 {[%clk 0:01:34]} 29. Kg2 {[%clk 0:01:46]}  Rfb8 {[%clk 0:01:35]} 30. Rc2 {[%clk 0:01:30]}  Qb5 {[%clk 0:01:33]} 31. Rf2 {[%clk 0:01:30]}  Bf8 {[%clk 0:01:25]} 32. Qf3 {[%clk 0:01:21]}  Qd7 {[%clk 0:00:56]} 33. Nxc4 {[%clk 0:01:21]}  Bg7 {[%clk 0:00:50]} 34. Ng3 {[%clk 0:01:17]}  Rc8 {[%clk 0:00:43]} 35. Ne3 {[%clk 0:01:11]}  Rcb8 {[%clk 0:00:40]} 36. Ngf5 {[%clk 0:01:11]}  Bf8 {[%clk 0:00:35]} 37. Ng4 {[%clk 0:01:10]}  Kh8 {[%clk 0:00:35]} 38. Nxe5 {[%clk 0:01:10]}  Qa7 {[%clk 0:00:30]} 39. Nc6 {[%clk 0:01:10]} 1-0


[Site "https://www.chess.com"]

[Event "Titled Tuesday Blitz January 10 Late 2023"]
[White "Solon, Nathan"]
[Black "Theodorou, Nikolas"]
[WhiteFideId "2017229"]
[BlackFideId "4262875"]
[WhiteElo "2306"]
[BlackElo "2591"]
[Result "0-1"]
[Round "02"]
[TimeControl "180+2"]
[Date "2023.01.10"]
[WhiteClock "0:00:18"]
[BlackClock "0:00:24"]

1. Nf3 {[%clk 0:00:00]}  Nf6 {[%clk 0:00:00]} 2. g3 {[%clk 0:03:00]}  g6 {[%clk 0:02:59]} 3. b3 {[%clk 0:03:01]}  Bg7 {[%clk 0:02:59]} 4. Bb2 {[%clk 0:03:01]}  O-O {[%clk 0:03:00]} 5. Bg2 {[%clk 0:03:01]}  d6 {[%clk 0:03:01]} 6. d4 {[%clk 0:03:01]}  b5 {[%clk 0:02:56]} 7. O-O {[%clk 0:03:01]}  Bb7 {[%clk 0:02:55]} 8. c4 {[%clk 0:02:44]}  a6 {[%clk 0:02:55]} 9. Nc3 {[%clk 0:02:45]}  Ne4 {[%clk 0:02:43]} 10. Qc2 {[%clk 0:02:38]}  Nxc3 {[%clk 0:02:34]} 11. Bxc3 {[%clk 0:02:33]}  Nd7 {[%clk 0:02:33]} 12. e4 {[%clk 0:02:34]}  e6 {[%clk 0:02:32]} 13. Rfe1 {[%clk 0:02:27]}  Qe7 {[%clk 0:02:31]} 14. Bb2 {[%clk 0:02:16]}  Rfc8 {[%clk 0:02:31]} 15. h4 {[%clk 0:02:12]}  h6 {[%clk 0:02:27]} 16. Rad1 {[%clk 0:02:08]}  bxc4 {[%clk 0:02:25]} 17. bxc4 {[%clk 0:02:03]}  Rab8 {[%clk 0:02:16]} 18. Ba1 {[%clk 0:02:01]}  Ba8 {[%clk 0:02:15]} 19. Nd2 {[%clk 0:01:58]}  Nb6 {[%clk 0:02:13]} 20. Nb3 {[%clk 0:01:47]}  Bc6 {[%clk 0:01:59]} 21. Rb1 {[%clk 0:01:42]}  Ba4 {[%clk 0:01:54]} 22. Qd3 {[%clk 0:01:36]}  Nd7 {[%clk 0:01:50]} 23. Na5 {[%clk 0:01:33]}  c5 {[%clk 0:01:49]} 24. Qa3 {[%clk 0:01:30]}  Bc6 {[%clk 0:01:46]} 25. d5 {[%clk 0:01:22]}  Ba8 {[%clk 0:01:24]} 26. Bxg7 {[%clk 0:01:05]}  Kxg7 {[%clk 0:01:22]} 27. Bh3 {[%clk 0:01:04]}  Nf6 {[%clk 0:01:23]} 28. Qc3 {[%clk 0:00:53]}  Rxb1 {[%clk 0:01:13]} 29. Rxb1 {[%clk 0:00:48]}  Kg8 {[%clk 0:01:05]} 30. Re1 {[%clk 0:00:49]}  Re8 {[%clk 0:01:05]} 31. dxe6 {[%clk 0:00:35]}  fxe6 {[%clk 0:01:05]} 32. e5 {[%clk 0:00:31]}  dxe5 {[%clk 0:01:06]} 33. Qxe5 {[%clk 0:00:31]}  Kf7 {[%clk 0:00:51]} 34. Nb3 {[%clk 0:00:32]}  Nd7 {[%clk 0:00:52]} 35. Qf4+ {[%clk 0:00:31]}  Qf6 {[%clk 0:00:48]} 36. Qxh6 {[%clk 0:00:32]}  Ne5 {[%clk 0:00:47]} 37. Qh7+ {[%clk 0:00:29]}  Kf8 {[%clk 0:00:44]} 38. Qh6+ {[%clk 0:00:26]}  Kg8 {[%clk 0:00:45]} 39. Rxe5 {[%clk 0:00:26]}  Qxe5 {[%clk 0:00:45]} 40. Qxg6+ {[%clk 0:00:24]}  Kf8 {[%clk 0:00:46]} 41. Qh6+ {[%clk 0:00:24]}  Ke7 {[%clk 0:00:47]} 42. Qh7+ {[%clk 0:00:23]}  Kd6 {[%clk 0:00:47]} 43. Qa7 {[%clk 0:00:21]}  Bc6 {[%clk 0:00:43]} 44. Na5 {[%clk 0:00:21]}  Qe1+ {[%clk 0:00:34]} 45. Bf1 {[%clk 0:00:18]}  Qxa5 {[%clk 0:00:24]} 0-1


[Site "https://www.chess.com"]